[Event "Chinese League Division-A 2024"]
[Site "Fuling Chongqing"]
[Date "2024.07.07"]
[Round "10.28"]
[White "Pang, Tao"]
[Black "Chen, Zhi"]
[Result "1-0"]
[ECO "D66"]
[WhiteElo "2495"]
[BlackElo "2164"]
[Annotator "TA"]
[PlyCount "114"]
[EventDate "2024.06.28"]
[EventType "team-tourn"]
[EventCountry "CHN"]
[SourceTitle "playchess.com"]
[Source "ChessBase"]
[SourceQuality "1"]
[TimeControl "40/5400+30:1800+30"]

{[%evp 28,114,27,12,97,11,138,59,135,137,195,132,137,101,100,108,116,118,114,126,113,114,152,108,138,132,143,91,89,73,162,157,166,152,190,190,216,202,227,229,239,208,235,224,302,242,244,234,361,0,236,180,181,178,169,183,171,175,195,195,189,186,260,236,698,713,679,759,768,541,1955,1942,7290,6504,5959,8295,7116,5618,29966,12327,29970,12658,29972,29971,29973,29968,29943,12814,1848]} 1. d4 {[%emt 0:00:02]} d5 {[%emt 0:00:20]} 2. c4 {[%emt 0:00:05]} e6 {[%emt 0:00:05]} 3. Nc3 {[%emt 0:00:12]} Nf6 {[%emt 0:00:28]} 4. Bg5 {[%emt 0:00:17]} Be7 {[%emt 0:00:38]} 5. e3 {[%emt 0:00:10]} h6 {[%emt 0:01:03]} 6. Bh4 {[%emt 0:00:15]} c6 {[%emt 0:01:02]} 7. Bd3 {[%emt 0:01:50]} Nbd7 {[%emt 0:04:01]} 8. Nf3 {[%emt 0:00:29]} dxc4 {[%emt 0:12:06]} 9. Bxc4 {[%emt 0:00:06]} b5 {[%emt 0:00:06]} 10. Bd3 {[%emt 0:00:18]} a6 {[%emt 0:06:25]} 11. a4 {[%emt 0:00:30]} Bb7 {[%emt 0:05:58]} 12. O-O {[%emt 0:00:30]} b4 {[%emt 0:03:41]} 13. Bxf6 {[%emt 0:02:24]} Nxf6 {[%emt 0:24:52]} 14. Ne4 {[%emt 0:00:16]} O-O {[%emt 0:06:49]} 15. Rc1 {[%emt 0:01:02]} Rc8 {[%emt 0:05:38]} (15... Nd7 $1 $11 {remains equal.}) 16. Qe2 {[%emt 0:07:05]} ({White should play} 16. Ne5 $16) 16... Qa5 {[%emt 0:01:43]} (16... Nxe4 $11 17. Bxe4 Bd6) 17. Ne5 {[%emt 0:02:33]} ({Better is} 17. Nc5 $16 Bxc5 18. Rxc5 Qxa4 19. Ne5) 17... Nxe4 {[%emt 0:09:55]} (17... c5 $14 18. Nxf6+ Bxf6) 18. Bxe4 $16 {[%emt 0:00:15]} Rc7 {[%emt 0:00:15] Black is weak on the light squares} (18... Qc7 $16) 19. b3 {[%emt 0:03:47]} (19. Nxc6 Qxa4 20. Ra1 Qb5 21. Nxe7+ Rxe7 22. Qxb5 axb5 23. Bxb7 Rxb7 $15) (19. Bxc6 $18 Bxc6 20. Rxc6 Qxe5 21. dxe5 Rxc6 22. Rd1) 19... Qb6 {[%emt 0:01:29]} 20. Nd3 {[%emt 0:07:54] White is much more active.} a5 {[%emt 0:03:04]} 21. Nc5 {[%emt 0:00:50] Inhibits Ba6.} e5 {[%emt 0:02:13]} 22. Nxb7 {[%emt 0:00:52]} exd4 {[%emt 0:01:59] [#]} 23. Nxa5 $1 {[%emt 0:04:07][%mdl 512]} Qxa5 {[%emt 0:00:07]} 24. exd4 {[%emt 0:00:06]} Bf6 {[%emt 0:00:18]} 25. Rfd1 {[%emt 0:05:00]} Qb6 {[%emt 0:00:16]} 26. Qg4 $36 {[%emt 0:07:49][%mdl 2048] White is on the roll.} g6 {[%emt 0:01:05] [#]} 27. Rc4 {[%emt 0:02:19]} (27. d5 $142 $1 {[%cal Rd5d6] And now d6 would win.} c5 28. d6) 27... Rd8 {[%emt 0:00:37]} 28. d5 {[%emt 0:12:51]} cxd5 {[%emt 0:00:53]} (28... c5 $16 {might work better.}) 29. Bxd5 $18 {[%emt 0:00:56]} Kg7 {[%emt 0:06:33]} 30. Rxb4 {[%emt 0:03:53][%cal Bc4b4,Bb4b5,Bb5b6][%mdl 32]} Qa7 {[%emt 0:01:04] aiming for ...Rc2.} 31. g3 {[%emt 0:02:51]} Rcd7 {[%emt 0:00:31]} 32. Qf3 {[%emt 0:01:29]} Qc5 {[%emt 0:00:38]} 33. Rb5 {[%emt 0:00:32]} Qc2 {[%emt 0:00:17]} 34. Kg2 {[%emt 0:02:16]} h5 {[%emt 0:00:17]} 35. h4 {[%emt 0:00:36]} Re7 {[%emt 0:00:26]} 36. Rb6 {[%emt 0:00:50]} Qb2 {[%emt 0:00:16]} 37. Rd2 {[%emt 0:01:24]} Qa1 {[%emt 0:00:34]} (37... Qc3 $142 38. Rd3 Qb2) 38. Rd1 {[%emt 0:06:15]} Qb2 {[%emt 0:00:09]} 39. Rb7 {[%emt 0:01:29]} Rxb7 {[%emt 0:00:49]} 40. Bxb7 {[%emt 0:00:00]} Rxd1 {[%emt 0:00:00]} 41. Qxd1 {[%emt 0:00:08][%mdl 4096] Endgame. KQB-KQB} Bd4 {[%emt 0:01:15]} 42. Qf3 {[%emt 0:00:23]} Qd2 {[%emt 0:00:12]} 43. Bd5 {[%emt 0:00:31][%cal Bb7d5,Bd5c4,Bc4e2][%mdl 32]} f6 {[%emt 0:00:48][%cal Od4f2]} 44. Bc4 {[%emt 0:00:36]} Bc5 {[%emt 0:00:30]} (44... f5 $142 45. Kg1 Bc5) 45. a5 {[%emt 0:05:05][%cal Ob3b4,Ba4a5,Ba5a6][%mdl 32] Strongly threatening b4!} Bd4 $2 {[%emt 0:07:51]} (45... f5 46. a6 Qd4) 46. a6 {[%emt 0:00:41][%cal Oa6a7] Black must now prevent a7!} Kh6 {[%emt 0:00:34]} 47. Qe2 {[%emt 0:02:47]} Qxe2 {[%emt 0:01:56]} 48. Bxe2 {[%emt 0:00:03] KB-KB} g5 {[%emt 0:00:20][%cal Bg6g5,Bg5g4][%mdl 32]} 49. f4 {[%emt 0:00:15]} g4 {[%emt 0:02:35]} 50. Bd3 {[%emt 0:00:11]} Kg7 {[%emt 0:00:15]} 51. Kf1 {[%emt 0:00:05]} Kf7 {[%emt 0:00:12]} 52. Ke2 {[%emt 0:00:06] b4 would now be deadly.} Bb6 {[%emt 0:00:31]} 53. b4 {[%emt 0:00:04][%cal Bb3b4,Bb4b5][%mdl 32] White threatens Bf5 and mate.} Ba7 {[%emt 0:00:37]} 54. b5 {[%emt 0:00:05]} Bb6 {[%emt 0:00:16]} 55. Be4 {[%emt 0:00:05]} Ba7 {[%emt 0:01:19]} 56. Kd3 {[%emt 0:00:26]} Bf2 {[%emt 0:00:15]} 57. Bf5 {[%emt 0:00:16] Ke4 would kill now.} Ke7 {[%emt 0:00:49] Weighted Error Value: White=0.48/Black=0.45.  Mistake:       	White=4     	Black=7      Inaccurate:     	White=1     	Black=3      OK:         	White=11    	Black=9      Best:        	White=2     	Black=2} 1-0

[Event "Chinese League Division-A 2024"]
[Site "Fuling Chongqing"]
[Date "2024.07.07"]
[Round "10.30"]
[White "Li, Xueyi"]
[Black "Zhu, Jiner"]
[Result "0-1"]
[ECO "D38"]
[WhiteElo "2209"]
[BlackElo "2476"]
[Annotator "TA"]
[PlyCount "66"]
[EventDate "2024.06.28"]
[EventType "team-tourn"]
[EventCountry "CHN"]
[SourceTitle "playchess.com"]
[Source "ChessBase"]
[SourceQuality "1"]
[TimeControl "40/5400+30:1800+30"]

{[%evp 11,66,17,10,12,15,24,31,8,12,10,16,24,15,8,14,17,22,8,13,12,5,0,0,0,0,0,0,0,0,-4,0,-37,-43,-29,-29,-28,-26,-35,-26,-26,-26,-30,-30,-483,-485,-475,-477,-1041,-1041,-879,-843,-5214,-5093,-5089,-4133,-1892,-1771]} 1. d4 {[%emt 0:00:03]} Nf6 {[%emt 0:00:05]} 2. c4 {[%emt 0:00:04]} e6 {[%emt 0:00:07]} 3. Nf3 {[%emt 0:00:05]} d5 {[%emt 0:00:07]} 4. Nc3 {[%emt 0:00:04]} Bb4 {[%emt 0:00:31]} 5. Qa4+ {[%emt 0:00:35]} Nc6 {[%emt 0:00:06][%cal Bb8c6,Bc6a5,Ba5c4,Bc4d2][%mdl 32]} 6. e3 {[%emt 0:00:05]} O-O {[%emt 0:00:23]} 7. Qc2 {[%emt 0:00:12]} Na5 {[%emt 0:06:52]} 8. c5 {[%emt 0:08:13]} b6 {[%emt 0:00:10]} 9. Bd2 {[%emt 0:11:18] White is slightly better.} Nc4 {[%emt 0:00:49]} 10. a3 {[%emt 0:05:06]} Nxd2 {[%emt 0:00:08]} 11. Nxd2 {[%emt 0:00:04]} Bxc3 {[%emt 0:00:05]} 12. Qxc3 {[%emt 0:00:05]} bxc5 {[%emt 0:00:08]} 13. Qxc5 {[%emt 0:01:03]} a5 {[%emt 0:00:07]} 14. Bd3 {[%emt 0:01:36]} Ba6 {[%emt 0:00:36]} 15. Bxa6 {[%emt 0:00:24]} Rxa6 {[%emt 0:00:05]} 16. O-O {[%emt 0:00:15]} a4 {[%emt 0:17:00]} 17. b4 {[%emt 0:03:28]} axb3 {[%emt 0:00:13]} 18. Nxb3 {[%emt 0:00:08]} Qb8 {[%emt 0:05:01]} 19. Rfb1 {[%emt 0:12:56]} Ne4 {[%emt 0:00:11]} 20. Qc2 {[%emt 0:05:09] Nc5 is the strong threat.} Qa7 {[%emt 0:04:34]} 21. Nd2 {[%emt 0:07:46]} Nxd2 {[%emt 0:02:56]} ({But not} 21... Rxa3 $6 22. Rxa3 Qxa3 23. Nxe4 dxe4 24. Qxc7 $14) 22. Qxd2 {[%emt 0:00:05]} Rxa3 {[%emt 0:00:22]} 23. Rxa3 {[%emt 0:00:59]} Qxa3 $15 {[%emt 0:00:06][%mdl 4096] Endgame. KQR-KQR} 24. Qc2 {[%emt 0:00:28]} Qd6 {[%emt 0:01:33]} 25. g3 {[%emt 0:01:58]} g6 {[%emt 0:06:15]} 26. Rb5 {[%emt 0:03:42]} Ra8 {[%emt 0:02:02]} 27. Rc5 $2 {[%emt 0:02:39][%mdl 8192] [#] White does not recover from this.} (27. Kg2 $11 {and White has nothing to worry.}) 27... Ra1+ $1 $19 {[%emt 0:03:43] Black is clearly winning.} 28. Kg2 {[%emt 0:08:17]} Qa6 {[%emt 0:00:11]} 29. h4 {[%emt 0:01:32]} (29. Kf3 $142 Qf1 30. Rxc7 Qh1+ 31. Kg4 Qxh2 32. Kg5) 29... Qf1+ {[%emt 0:01:07]} 30. Kf3 {[%emt 0:00:15]} Qh1+ {[%emt 0:00:06]} 31. Kg4 {[%emt 0:11:25]} h6 {[%emt 0:00:24][%cal Oa1a2] ( -> ...Ra2!)} 32. f3 {[%emt 0:09:07]} Rf1 {[%emt 0:00:22]} 33. Qe2 {[%emt 0:00:23] [#]} Rxf3 $3 {[%emt 0:01:42][%mdl 512] Weighted Error Value: White=0.83/Black=0.01 (flawless) .  Loses game:     	White=1     	---        Mistake:       	White=1     	---        Inaccurate:     	White=1     	---        OK:         	White=6     	Black=11     Best:        	White=2     	Black=2      Strong:       	---       	Black=1} 0-1